[Event "44th Chess Olympiad Women 2022"]
[Site "Chennai"]
[Date "2022.07.29"]
[Round "1.1"]
[White "Saidova, Rukhshona"]
[Black "Tania, Sachdev"]
[Result "0-1"]
[ECO "C93"]
[WhiteElo "1624"]
[BlackElo "2399"]
[Annotator "TA"]
[PlyCount "206"]
[EventDate "2022.07.29"]
[EventType "team-tourn"]
[EventCountry "IND"]
[SourceTitle "playchess.com"]
[Source "ChessBase"]
[SourceQuality "1"]
[WhiteTeam "Tajikistan"]
[BlackTeam "India"]
[WhiteTeamCountry "TJK"]
[BlackTeamCountry "IND"]
[TimeControl "40/5400+30:1800+30"]

{[%evp 27,206,33,37,18,48,0,0,0,0,0,0,-17,-5,-6,12,10,11,20,88,80,92,71,72,67,49,54,60,25,32,0,18,29,9,-4,-11,-6,0,0,22,-3,0,0,47,0,36,34,189,102,103,101,177,104,111,104,105,91,101,98,103,66,66,66,66,66,78,0,0,0,0,0,0,0,0,0,4,0,0,0,0,0,0,0,0,0,0,0,0,-3,-3,-3,0,-6,0,0,0,0,0,0,0,-3,-10,-12,-12,-12,0,0,0,0,0,0,0,0,0,0,0,0,0,-114,-114,-114,-114,-114,0,0,0,0,0,0,0,0,0,0,-8,-8,-9,-11,-14,-14,0,-704,212,-586,-356,-268,-1207,-414,-346,-289,-666,-1104,-457,-627,-436,-376,-333,-12841,-12841,-12841,-12842,-12842,-12843,-12843,-12843,-12844,-12844,-12845,-12845,-12845,-12846,-12846,-12847,-12847,-12847,-27996,-27996,-27997,-27997,-27998,-27998,-27999,-27999]} 1. e4 {[%emt 0:00:12]} e5 {[%emt 0:00:07]} 2. Nf3 {[%emt 0:00:17]} Nc6 {[%emt 0:00:04]} 3. Bb5 {[%emt 0:00:25]} a6 {[%emt 0:00:06]} 4. Ba4 {[%emt 0:00:06]} Nf6 {[%emt 0:00:22]} 5. O-O {[%emt 0:00:33]} Be7 {[%emt 0:00:17]} 6. Re1 {[%emt 0:00:52]} b5 {[%emt 0:00:35]} 7. Bb3 {[%emt 0:00:11]} d6 {[%emt 0:06:16]} 8. c3 {[%emt 0:01:51]} O-O {[%emt 0:01:21]} 9. h3 {[%emt 0:02:09]} h6 {[%emt 0:02:39]} 10. d4 {[%emt 0:03:18]} Re8 {[%emt 0:00:51]} 11. Nbd2 {[%emt 0:03:09]} Bf8 {[%emt 0:00:08]} 12. Nf1 {[%emt 0:01:30]} Bd7 {[%emt 0:00:46]} 13. Ng3 {[%emt 0:01:21]} Na5 {[%emt 0:00:11]} 14. Bc2 {[%emt 0:00:39]} c5 {[%emt 0:01:09]} 15. a4 {[%emt 0:06:56] 15.d5 is the modern continuation. C93: Closed Ruy Lopez: Smyslov Variation.} Nc6 {[%emt 0:06:26]} (15... cxd4 {is more complex.} 16. cxd4 Qb6 17. axb5 axb5 18. d5 Nc4) 16. axb5 {[%emt 0:07:08]} (16. d5 $14 Ne7 17. b4) 16... axb5 $11 {[%emt 0:00:12] [#]} 17. Rxa8 $146 {[%emt 0:01:03] The position is equal.} ({Predecessor:} 17. Be3 Qc7 18. Qd2 Red8 19. d5 Ne7 20. Nxe5 Rxa1 21. Rxa1 dxe5 22. d6 Qc6 23. dxe7 Bxe7 {½-½ (35) Uthayakumar,R (1656)-Yang,F (1986) Mississauga 2017}) 17... Qxa8 {[%emt 0:00:04]} 18. dxc5 {[%emt 0:02:50]} dxc5 {[%emt 0:00:22]} 19. Nh4 {[%emt 0:03:25]} g6 {[%emt 0:08:36]} 20. Qf3 {[%emt 0:09:57]} Nh7 {[%emt 0:05:04]} 21. Nf1 {[%emt 0:07:48]} ({But not} 21. Bb3 c4 22. Bc2 Ng5 $15) 21... Nd8 {[%emt 0:32:23]} 22. Qg3 {[%emt 0:19:21]} Kh8 {[%emt 0:01:59]} (22... Ne6 $11) 23. Ne3 {[%emt 0:03:49]} Bg7 {[%emt 0:06:56]} 24. Nd5 {[%emt 0:03:25]} Qb7 {[%emt 0:04:38] Inhibits Nc7.} 25. Rd1 {[%emt 0:02:30]} Bc6 {[%emt 0:02:51]} 26. Nf3 {[%emt 0:03:04]} Kg8 {[%emt 0:05:51]} 27. Nh2 {[%emt 0:05:33]} h5 {[%emt 0:05:28]} 28. Be3 {[%emt 0:04:47]} Ne6 {[%emt 0:01:42]} 29. Nf3 {[%emt 0:01:35]} Qb8 {[%emt 0:01:23]} ({Less strong is} 29... Nf6 30. Nxe5 Bxd5 31. exd5 Nxd5 {[#]} 32. Nxf7 $1 $18 {[%mdl 512]}) 30. Ng5 {[%emt 0:01:01]} Nhxg5 {[%emt 0:04:50]} 31. Bxg5 {[%emt 0:00:03]} Nxg5 {[%emt 0:00:07]} 32. Qxg5 {[%emt 0:00:05] [#] Black must now prevent Ne7+.} Qb7 {[%emt 0:00:09] Inhibits Ne7+.} 33. f3 {[%emt 0:01:56]} Re6 {[%emt 0:00:35]} 34. Qd8+ {[%emt 0:02:08]} Kh7 {[%emt 0:00:25]} (34... Bf8 $11 {should be considered.}) 35. Qh4 {[%emt 0:01:20]} (35. g4 $14 {was preferrable.}) 35... Bh6 {[%emt 0:02:12]} 36. g4 {[%emt 0:00:55]} hxg4 $2 {[%emt 0:00:35]} (36... Bxd5 $14 37. exd5 Rd6) 37. hxg4 {[%emt 0:00:08]} (37. fxg4 $18 {And now g5 would win.} g5 38. Qf2) 37... g5 $16 {[%emt 0:00:27]} 38. Qh5 {[%emt 0:00:31]} Rd6 {[%emt 0:00:16]} (38... Kg8 $16 {keeps fighting.}) 39. Ne3 {[%emt 0:01:00]} ({White should try} 39. Qh2 $18 f6 40. Kg2) 39... Rxd1+ {[%emt 0:00:05]} 40. Bxd1 {[%emt 0:00:02]} Qd7 {[%emt 0:00:55]} 41. Be2 {[%emt 0:30:31]} Qe6 {[%emt 0:04:22]} 42. Nf5 {[%emt 0:00:00][%cal Oc3c4]} Qg6 {[%emt 0:03:56]} 43. Qxg6+ {[%emt 0:00:00]} (43. Qh2 {seems wilder.} f6 44. b3 Bd7 45. Kf2) 43... fxg6 {[%emt 0:00:02][%mdl 4096] Endgame KBB-KBN} 44. Ne7 {[%emt 0:00:00]} Bd7 {[%emt 0:01:36]} 45. Nd5 {[%emt 0:00:00]} Kg7 {[%emt 0:01:33] Inhibits Nf6.} 46. Nc7 {[%emt 0:00:00]} (46. b3 $16) 46... c4 $1 $11 {[%emt 0:01:05]} 47. Kf2 {[%emt 0:00:00]} Kf7 {[%emt 0:00:36]} 48. Ke3 {[%emt 0:00:00][%cal Ob2b3]} Bf8 {[%emt 0:00:16]} 49. Nd5 {[%emt 0:00:00]} Ke6 {[%emt 0:00:34]} 50. Kd2 {[%emt 0:00:00]} Bc5 {[%emt 0:03:24]} 51. Ne3 {[%emt 0:00:00]} Kd6 {[%emt 0:00:28]} 52. Bd1 {[%emt 0:00:00]} Be6 {[%emt 0:00:16]} 53. Be2 {[%emt 0:00:00]} Kc6 {[%emt 0:00:26]} 54. Nf1 {[%emt 0:00:00]} Bf2 {[%emt 0:01:58]} 55. Kc2 {[%emt 0:00:00]} Kc5 {[%emt 0:00:23]} 56. Nd2 {[%emt 0:00:00]} Be3 {[%emt 0:04:34]} 57. Nb1 {[%emt 0:00:16]} Bf4 {[%emt 0:01:29]} 58. Nd2 {[%emt 0:01:32]} b4 {[%emt 0:00:51]} 59. Nb1 {[%emt 0:01:12]} Bd7 {[%emt 0:01:22] aiming for ...Ba4+.} 60. b3 {[%emt 0:04:01] Inhibits Ba4.} cxb3+ {[%emt 0:03:07]} 61. Kxb3 {[%emt 0:00:16]} Be6+ {[%emt 0:00:05]} 62. Kb2 {[%emt 0:02:38]} Be3 {[%emt 0:03:15]} 63. cxb4+ {[%emt 0:01:34]} Kxb4 {[%emt 0:00:07]} 64. Kc2 {[%emt 0:00:50]} Bb3+ {[%emt 0:01:22]} 65. Kd3 {[%emt 0:00:01]} Bd4 {[%emt 0:04:03]} 66. Nd2 {[%emt 0:01:14]} Ba4 {[%emt 0:00:02]} 67. Nb1 {[%emt 0:00:15]} Bd7 {[%emt 0:02:10]} 68. Kd2 {[%emt 0:00:07]} Kb3 {[%emt 0:00:25]} 69. Bd3 {[%emt 0:00:51]} Kb2 {[%emt 0:00:12]} 70. Ke2 {[%emt 0:00:20]} Kc1 {[%emt 0:01:04]} 71. Nd2 {[%emt 0:00:14]} Ba4 {[%emt 0:00:04] ...Bd1+ is the strong threat.} 72. Nc4 {[%emt 0:01:08]} (72. Ba6 $11 {remains equal.}) 72... Bd1+ $17 {[%emt 0:00:11] A strong pair of Bishops.} 73. Ke1 {[%emt 0:00:21]} Bxf3 {[%emt 0:00:25]} 74. Nd6 {[%emt 0:00:15]} Be3 {[%emt 0:01:46]} (74... Bxg4 $17 {Strongly threatening ...Bf3.} 75. Nf7 Bd1 76. Nxg5 Be3) 75. Be2 $11 {[%emt 0:00:26]} Bh1 {[%emt 0:00:18]} 76. Bd3 {[%emt 0:00:35]} Bf3 {[%emt 0:00:44]} 77. Be2 {[%emt 0:00:07]} Bg2 {[%emt 0:00:03]} 78. Bd3 {[%emt 0:00:05]} Bh3 {[%emt 0:00:27]} 79. Be2 $1 {[%emt 0:00:04]} Kc2 {[%emt 0:00:44]} 80. Nf7 {[%emt 0:01:19]} Bf4 {[%emt 0:00:39][%cal Rf4g3]} 81. Bf3 $1 {[%emt 0:01:10]} Kd3 {[%emt 0:00:25] Threatens to win with ...Bg3+.} 82. Kf2 {[%emt 0:00:07] Inhibits Bg3+.} Kd2 {[%emt 0:00:33]} 83. Nh8 $2 {[%emt 0:00:59][%mdl 8192] White is now going downhill.} (83. Be2 $11) 83... Be3+ $19 {[%emt 0:00:12]} 84. Kg3 {[%emt 0:00:02]} Bf1 {[%emt 0:00:04]} 85. Nxg6 {[%emt 0:00:09]} Ke1 $2 {[%emt 0:00:16]} (85... Bc4 86. Ne7 Ke1) 86. Bg2 {[%emt 0:01:04]} Bc4 {[%emt 0:01:30]} 87. Kh3 {[%emt 0:00:31]} Bf4 $2 {[%emt 0:00:24]} (87... Bd4 88. Ne7 Be3) 88. Ne7 {[%emt 0:00:36]} Ke2 {[%emt 0:00:39]} (88... Kf2 $142 89. Nd5 Be2) 89. Nd5 {[%emt 0:00:39]} Kf2 {[%emt 0:00:12]} 90. Nc3 {[%emt 0:00:24]} Ke3 {[%emt 0:00:44]} 91. Nd1+ $2 {[%emt 0:00:29]} (91. Na4) 91... Kd2 {[%emt 0:00:14]} 92. Nf2 {[%emt 0:00:38]} Ke2 {[%emt 0:00:19]} 93. Nh1 {[%emt 0:00:22]} Bd3 {[%emt 0:00:28]} 94. Ng3+ {[%emt 0:00:41]} Bxg3 {[%emt 0:00:11]} 95. Kxg3 {[%emt 0:00:20] KB-KB} Ke3 {[%emt 0:00:07]} 96. Bf3 {[%emt 0:00:37]} Bxe4 {[%emt 0:00:43]} 97. Bd1 {[%emt 0:00:21]} Bd3 {[%emt 0:00:21]} 98. Bf3 {[%emt 0:00:43]} Kd2 {[%emt 0:00:38]} 99. Kf2 {[%emt 0:00:28]} e4 {[%emt 0:00:17]} 100. Bxe4 {[%emt 0:00:29]} Bxe4 {[%emt 0:00:02] Black mates.} 101. Kg3 {[%emt 0:00:18]} Ke3 {[%emt 0:00:03]} 102. Kh2 {[%emt 0:00:30]} Kf4 {[%emt 0:00:04]} 103. Kh3 {[%emt 0:00:07]} Bd5 {[%emt 0:00:05] Weighted Error Value: White=0.14 (very precise) /Black=0.17 (very precise)} 0-1

[Event "44th Chess Olympiad Women 2022"]
[Site "Chennai"]
[Date "2022.07.29"]
[Round "1.2"]
[White "Buksa, Nataliya"]
[Black "Selkirk, Rebecca"]
[Result "1-0"]
[ECO "A31"]
[WhiteElo "2401"]
[BlackElo "1745"]
[Annotator "TA"]
[PlyCount "81"]
[EventDate "2022.07.29"]
[EventType "team-tourn"]
[EventCountry "IND"]
[SourceTitle "playchess.com"]
[Source "ChessBase"]
[SourceQuality "1"]
[WhiteTeam "Ukraine"]
[BlackTeam "South Africa"]
[WhiteTeamCountry "UKR"]
[BlackTeamCountry "RSA"]
[TimeControl "40/5400+30:1800+30"]

{[%evp 27,81,57,44,41,40,39,52,49,57,0,0,-12,-3,-8,-6,-3,42,58,56,48,48,48,57,14,32,22,106,102,102,97,101,98,109,96,96,104,104,101,132,127,125,125,274,202,402,306,320,117,697,667,6323,6287,29995,29996,29996,29997]} 1. e4 {[%emt 0:00:03]} c5 {[%emt 0:00:07]} 2. Nf3 {[%emt 0:00:07]} e6 {[%emt 0:00:07]} 3. d4 {[%emt 0:00:03]} cxd4 {[%emt 0:00:05]} 4. Nxd4 {[%emt 0:00:03]} a6 {[%emt 0:00:13]} 5. c4 {[%emt 0:00:04]} Nf6 {[%emt 0:00:13]} 6. Nc3 {[%emt 0:00:05]} Qc7 {[%emt 0:00:17]} 7. a3 {[%emt 0:00:09]} b6 {[%emt 0:00:45]} 8. Be3 {[%emt 0:00:42]} Bb7 {[%emt 0:01:32]} 9. f3 {[%emt 0:00:05]} d6 {[%emt 0:00:12]} 10. Be2 {[%emt 0:00:50]} Nbd7 {[%emt 0:00:24]} 11. Rc1 {[%emt 0:02:25]} Be7 {[%emt 0:03:21]} 12. O-O {[%emt 0:01:07]} O-O {[%emt 0:00:39]} 13. Qd2 {[%emt 0:01:48]} Rfe8 {[%emt 0:01:29]} 14. b4 {[%emt 0:00:29]} Rac8 {[%emt 0:01:02]} 15. Na4 {[%emt 0:04:55] A31: Symmetrical English: 2 Nf3 Nf6 3 d4.} Qb8 {[%emt 0:06:42]} 16. Kh1 {[%emt 0:12:49]} d5 {[%emt 0:10:33]} 17. cxd5 {[%emt 0:13:08] [#] White is slightly better.} exd5 $146 {[%emt 0:00:22]} ({Predecessor:} 17... Rxc1 18. Rxc1 exd5 19. e5 Nxe5 20. Nxb6 Bd6 21. Nf5 Bc7 22. Nxg7 Kxg7 23. Bh6+ Kh8 {1-0 (31) Alsina Leal,D (2529)-Deepan Chakkravarthy,J (2506) Paris 2009}) 18. Bf4 {[%emt 0:00:46]} (18. e5 $1 $14 Rxc1 19. Rxc1 Nxe5 20. Nxb6) 18... Bd6 $11 {[%emt 0:03:00]} 19. Bxd6 {[%emt 0:00:50]} Qxd6 {[%emt 0:00:12]} 20. Nf5 {[%emt 0:00:02]} Qe5 {[%emt 0:02:52]} 21. Rxc8 {[%emt 0:05:28]} Rxc8 {[%emt 0:04:11]} 22. Qg5 {[%emt 0:11:33][%csl Gf5][%cal Rg5g7]} g6 {[%emt 0:02:52] [#]} 23. Nxb6 $1 {[%emt 0:00:29]} Re8 $1 {[%emt 0:08:27]} 24. Nxd7 {[%emt 0:14:44] The board is on fire.} Nxd7 {[%emt 0:04:22]} 25. Qg3 {[%emt 0:07:00]} (25. b5 $5 {[%cal Rb5a6]} a5 26. Qg3 $11) 25... Qb2 {[%emt 0:06:59]} 26. Nd6 {[%emt 0:03:23][%cal Bf5d6,Bd6b7,Bb7c5][%mdl 32]} Rb8 {[%emt 0:05:03]} (26... Qxe2 $2 27. Re1 Qd3 28. Nxe8 $18) (26... Re6 $1 $11 {remains equal.}) 27. Nxb7 {[%emt 0:00:10] White is more active.} Qxe2 {[%emt 0:02:10][%cal Re2f1] [#]} 28. Re1 {[%emt 0:00:03]} Qd2 {[%emt 0:02:09]} 29. Nc5 {[%emt 0:05:06]} Rd8 {[%emt 0:01:04]} 30. Qh4 {[%emt 0:04:47]} (30. Nxa6 $6 dxe4 31. fxe4 Nf6 $11) 30... f6 {[%emt 0:11:20]} 31. Nxd7 {[%emt 0:03:33]} Rxd7 {[%emt 0:00:11]} 32. exd5 {[%emt 0:00:34] Threatens to win with h3.} Rxd5 $16 {[%emt 0:00:50][%mdl 4096] Endgame KQR-KQR} 33. h3 {[%emt 0:00:04] And now Re7 would win.} Rd4 {[%emt 0:10:10]} 34. Qg3 {[%emt 0:00:08]} Qc3 {[%emt 0:01:14]} (34... Rd7 $16 35. Re6 Qc1+ 36. Kh2 Kf7) 35. Re7 {[%emt 0:01:25] White wants to mate with Qb8+.} Rc4 $2 {[%emt 0:02:56]} (35... Qc8 36. Qe1 Qc4) 36. Qd6 {[%emt 0:01:28][%cal Rd6d8]} Rc8 {[%emt 0:02:07] Inhibits Qd8+.} 37. Ra7 $2 $40 {[%emt 0:01:23][%mdl 128] White has strong attack.} ({Less strong is} 37. Qxa6 Qc1+ 38. Kh2 Qf4+ 39. g3 Rc2+ 40. Re2 Qc1 $16) (37. Qe6+ $18 {and White stays clearly on top.} Kh8 38. Kh2 (38. Qf7 Qc1+ 39. Kh2 Qf4+ 40. Kg1 Rc1+ 41. Kf2 Qh4+ 42. Ke3 Qg5+ 43. Kf2 Qh4+ 44. Ke3 Qg5+ 45. Kf2 Qh4+ $11) 38... Qe5+ 39. Qxe5 fxe5 40. Rxe5) 37... f5 $2 {[%emt 0:02:42][%mdl 8192]} (37... Qe3 $16 38. Re7 (38. Rxa6 Rc1+ 39. Kh2 Qg1+ 40. Kg3 Qe1+ 41. Kh2 Qg1+ 42. Kg3 Qe1+ 43. Kh2 Qg1+ $11) 38... Qc1+ 39. Kh2 Qc6) 38. Kh2 $18 {[%emt 0:01:05] White threatens Qe6+ and mate.} Qe3 {[%emt 0:02:11] Inhibits Qe6+.} 39. Re7 {[%emt 0:00:05]} Qc3 {[%emt 0:02:06]} 40. Qe6+ {[%emt 0:00:06]} Kh8 {[%emt 0:00:10]} 41. Qf7 {[%emt 0:30:03] Weighted Error Value: White=0.22 (precise) /Black=0.83} 1-0

[Event "44th Chess Olympiad Women 2022"]
[Site "Chennai"]
[Date "2022.07.29"]
[Round "1.3"]
[White "Javakhishvili, Lela"]
[Black "A-ALI, Sali Abbas Abdulzahr"]
[Result "1-0"]
[ECO "E18"]
[WhiteElo "2476"]
[BlackElo "1864"]
[Annotator "TA"]
[PlyCount "83"]
[EventDate "2022.07.29"]
[EventType "team-tourn"]
[EventCountry "IND"]
[SourceTitle "playchess.com"]
[Source "ChessBase"]
[SourceQuality "1"]
[WhiteTeam "Georgia"]
[BlackTeam "Iraq"]
[WhiteTeamCountry "GEO"]
[BlackTeamCountry "IRQ"]
[TimeControl "40/5400+30:1800+30"]

{[%evp 17,83,11,70,38,43,64,102,96,114,120,112,100,95,99,151,144,144,151,163,63,124,124,124,124,124,124,125,64,62,60,182,102,96,76,110,110,119,110,110,112,126,115,146,155,1114,843,2314,1656,6287,6287,29981,29982,29983,29984,29984,29985,29985,29986,29986,29986,29987,29988,29988,29988,29988,29989,29989,29990]} 1. d4 {[%emt 0:00:04]} d5 {[%emt 0:00:07]} 2. c4 {[%emt 0:00:08]} e6 {[%emt 0:00:05]} 3. Nf3 {[%emt 0:00:11]} Nf6 {[%emt 0:00:09]} 4. g3 {[%emt 0:00:09]} Be7 {[%emt 0:00:53]} 5. Bg2 {[%emt 0:00:08]} O-O {[%emt 0:00:14]} 6. O-O {[%emt 0:00:14]} b6 {[%emt 0:00:52]} 7. cxd5 {[%emt 0:01:27]} exd5 {[%emt 0:00:31]} 8. Nc3 {[%emt 0:00:23]} Bb7 {[%emt 0:03:35]} 9. Bf4 {[%emt 0:01:48]} c5 {[%emt 0:07:43]} (9... Nbd7 $11) 10. Rc1 {[%emt 0:07:31] E18: Queen's Indian: Old Main Line (4 g3 Bb7 5 Bg2 Be7 6 0-0 0-0 7 Nc3).} Nc6 {[%emt 0:07:35]} 11. dxc5 {[%emt 0:03:00]} Bxc5 {[%emt 0:02:00]} 12. a3 {[%emt 0:09:30] [#] White is better.} h6 $146 {[%emt 0:17:53]} ({Predecessor:} 12... Ne7 13. b4 Bd6 14. Bxd6 Qxd6 15. Nb5 Qd8 16. Nbd4 Rc8 17. Qa4 a6 18. Qb3 Re8 {1-0 (51) Ilascu C,I (2081)-Redlinger,L (1875) ICCF email 2014}) 13. b4 {[%emt 0:03:46]} Be7 {[%emt 0:01:18]} 14. Ne5 {[%emt 0:05:11] Inhibits Qd7.} Nxe5 {[%emt 0:16:44]} 15. Bxe5 {[%emt 0:00:09]} Ne4 {[%emt 0:09:01]} (15... Rc8 $142) 16. Nxe4 $16 {[%emt 0:08:16]} dxe4 {[%emt 0:00:07]} 17. Rc7 {[%emt 0:01:12]} Bd5 {[%emt 0:01:49] [#]} 18. Qd4 {[%emt 0:28:37]} (18. Rxe7 $1 $18 {[%mdl 512] Threatens to win with Rc7.} Qxe7 19. Qxd5) 18... Bd6 {[%emt 0:05:50] [#]} (18... Re8 $14) 19. Bxg7 $1 {[%emt 0:08:36] White is more active.} Bxc7 {[%emt 0:02:21]} 20. Bxf8 {[%emt 0:00:08]} Kxf8 {[%emt 0:00:33]} 21. Rd1 {[%emt 0:00:09]} Qg5 {[%emt 0:05:25] ...Rd8 is the strong threat.} 22. h4 {[%emt 0:03:34]} (22. Qxd5 $16 Qxd5 23. Rxd5) 22... Qg6 $1 $14 {[%emt 0:03:21]} 23. Qc3 $1 {[%emt 0:03:47]} ({Reject} 23. Qxd5 Rd8 24. Qb3 Rxd1+ 25. Qxd1 e3 $11) 23... Bc6 {[%emt 0:07:45] [#]} (23... Qc6 $14 24. Qxc6 Bxc6) 24. h5 {[%emt 0:06:04]} (24. b5 $1 $18 {[%cal Rb5c6]} Rd8 25. Rxd8+ Bxd8 26. bxc6) 24... Qe6 $16 {[%emt 0:01:15] And now ...Be5 would win.} 25. Rc1 {[%emt 0:02:02]} Rd8 {[%emt 0:02:35][%cal Oc7g3]} 26. Qxc6 {[%emt 0:00:19]} Rd1+ {[%emt 0:00:14]} 27. Kh2 {[%emt 0:01:15]} Rxc1 {[%emt 0:00:29]} 28. Qxc1 {[%emt 0:00:02][%mdl 4096] Endgame KQB-KQB} Bd8 {[%emt 0:00:15]} 29. Qf4 $36 {[%emt 0:03:00][%mdl 2048] White has strong initiative.} e3 {[%emt 0:01:44]} 30. Bh3 {[%emt 0:00:33]} ({Don't play} 30. Qxe3 $6 Qxe3 31. fxe3 Bg5 $14) 30... Bg5 $2 {[%emt 0:01:59]} (30... Qf6 $16) 31. Qxg5 {[%emt 0:00:46]} hxg5 {[%emt 0:00:07]} 32. Bxe6 {[%emt 0:00:06]} fxe6 $18 {[%emt 0:00:11] KP-KP} 33. g4 {[%emt 0:00:20]} exf2 {[%emt 0:00:19]} 34. Kg2 {[%emt 0:00:03] White mates.} Kg7 {[%emt 0:00:51]} 35. Kxf2 {[%emt 0:00:06]} a6 {[%emt 0:00:15]} 36. Ke3 {[%emt 0:00:05]} Kf7 {[%emt 0:00:06]} 37. Ke4 {[%emt 0:00:08]} Kf6 {[%emt 0:00:05]} 38. Kd4 {[%emt 0:00:06]} Kf7 {[%emt 0:00:32]} 39. Ke5 {[%emt 0:00:07]} Ke7 {[%emt 0:00:05]} 40. a4 {[%emt 0:00:28]} b5 {[%emt 0:00:48]} 41. axb5 {[%emt 0:30:05]} axb5 {[%emt 0:30:06]} 42. e4 {[%emt 0:00:14] Weighted Error Value: White=0.14 (very precise) /Black=0.38} 1-0

[Event "44th Chess Olympiad Women 2022"]
[Site "Chennai"]
[Date "2022.07.29"]
[Round "1.4"]
[White "Khalil, Manar"]
[Black "Rudzinska, Michalina"]
[Result "0-1"]
[ECO "B13"]
[WhiteElo "1831"]
[BlackElo "2315"]
[Annotator "TA"]
[PlyCount "66"]
[EventDate "2022.07.29"]
[EventType "team-tourn"]
[EventCountry "IND"]
[SourceTitle "playchess.com"]
[Source "ChessBase"]
[SourceQuality "1"]
[WhiteTeam "Syria"]
[BlackTeam "Poland"]
[WhiteTeamCountry "SYR"]
[BlackTeamCountry "POL"]
[TimeControl "40/5400+30:1800+30"]

{[%evp 14,66,11,0,9,2,25,-26,20,0,23,21,45,37,60,64,58,21,27,-44,-66,-37,-58,-33,0,-126,-131,-170,-138,-172,-158,-132,-147,-129,0,-181,-182,-435,-447,-447,-441,-518,-428,-497,-437,-431,-422,-921,-897,-2249,-1826,-29987,-29988,-29995,-29996]} 1. e4 {[%emt 0:00:09]} c6 {[%emt 0:00:10]} 2. d4 {[%emt 0:00:42]} d5 {[%emt 0:00:08]} 3. exd5 {[%emt 0:00:55]} cxd5 {[%emt 0:00:09]} 4. Bd3 {[%emt 0:01:01]} Nf6 {[%emt 0:00:12]} 5. h3 {[%emt 0:02:36]} Nc6 {[%emt 0:00:22]} 6. Nf3 {[%emt 0:00:18]} g6 {[%emt 0:02:33]} 7. O-O {[%emt 0:01:56]} Bf5 {[%emt 0:00:55]} 8. c3 {[%emt 0:02:17]} Qc7 {[%emt 0:01:55] B13: Caro-Kann: Exchange Variation and Panov-Botvinnik Attack.} 9. Re1 {[%emt 0:02:28]} e6 {[%emt 0:01:14]} 10. Na3 {[%emt 0:11:12]} ({White should try} 10. Bb5) 10... a6 {[%emt 0:04:57]} (10... Bxd3 $142 11. Qxd3 Bxa3 12. bxa3 O-O) 11. Nc2 {[%emt 0:03:49] [#]} Bd6 $146 {[%emt 0:06:45]} ({Predecessor:} 11... h5 12. a4 Be7 13. Bg5 Na5 14. Bxf6 Bxf6 15. Ne3 Be7 16. Nxf5 gxf5 17. Ne5 Nc6 18. Nxc6 bxc6 {0-1 (76) Nayak,R (2227)-Mitrabha,G (2414) Udaipur 2019}) 12. Bh6 {[%emt 0:09:25] Bxf5 is the strong threat.} Bxd3 {[%emt 0:07:20]} 13. Qxd3 {[%emt 0:02:03]} Nh5 {[%emt 0:01:09] Inhibits Bg7.} 14. Ne3 {[%emt 0:06:24]} Ne7 {[%emt 0:00:59]} 15. Ng4 {[%emt 0:09:49][%cal Og4f6]} Nf5 {[%emt 0:10:14]} 16. Nfe5 {[%emt 0:07:12]} (16. Bd2 $11) 16... f6 $1 $15 {[%emt 0:04:52]} 17. Nf3 {[%emt 0:05:13]} Nxh6 {[%emt 0:10:33]} 18. Nxh6 {[%emt 0:04:45]} Nf4 {[%emt 0:00:58]} 19. Qd2 {[%emt 0:01:08] [#]} (19. Qe3 $11 Qg7 20. Ng4) 19... O-O-O $1 $17 {[%emt 0:02:04]} 20. Ng4 {[%emt 0:06:58]} h5 $36 {[%emt 0:01:41][%mdl 2048] Black has strong initiative.} 21. Nge5 {[%emt 0:02:18]} ({Don't play} 21. Nxf6 Rdf8 22. Nxd5 exd5) 21... g5 {[%emt 0:03:21]} ({Inferior is} 21... fxe5 22. dxe5 Nxh3+ 23. gxh3 $15) 22. Nd3 {[%emt 0:04:07]} g4 {[%emt 0:01:28]} 23. Nh4 {[%emt 0:02:26]} gxh3 {[%emt 0:03:33] Black is more active.} (23... Rhg8 $17 24. Qe3 Rde8) 24. g3 $2 {[%emt 0:00:49]} (24. Nxf4 $1 $11 {and White stays safe.} Bxf4 25. Qd3) 24... Rdg8 $19 {[%emt 0:03:07] [#] White must now prevent ...Nxd3.} 25. Kh2 $2 {[%emt 0:01:51]} (25. Nxf4 Bxf4 26. Qe2 Bxg3 27. fxg3 Qxg3+ 28. Kh1 Qxh4 29. Qxe6+ Kb8 30. Qd6+ Ka8 31. Qxd5) 25... Ng2 {[%emt 0:02:52]} 26. Nxg2 {[%emt 0:03:30]} hxg2 {[%emt 0:00:10]} 27. Qe3 {[%emt 0:05:08]} h4 {[%emt 0:03:02][%cal Rh4g3]} 28. Kxg2 {[%emt 0:00:22]} hxg3 {[%emt 0:03:39]} 29. Qxe6+ {[%emt 0:01:25]} Kb8 {[%emt 0:00:10] Hoping for ...gxf2+.} 30. Kf3 {[%emt 0:00:22]} (30. Rh1 $142 gxf2+ 31. Kxf2) 30... gxf2 {[%emt 0:01:45]} 31. Nxf2 {[%emt 0:01:32]} Bg3 {[%emt 0:00:25] ( -> ...Qf4+)} 32. Qf5 {[%emt 0:01:17] Against Qf4+} Bxf2 {[%emt 0:00:36]} 33. Kxf2 {[%emt 0:00:35]} Qh2+ {[%emt 0:00:13] Weighted Error Value: White=1.14/Black=0.16 (very precise)} 0-1